bitfinex/quotes_SOLUSD_20250313
["timestamp","ask_amount","ask_price","bid_price","bid_amount"]
[1741873837235,57.48831614,124.71,124.66,57.48831614]
[1741873837657,57.48831614,124.71,124.64,28.1108]
[1741873837858,57.48831614,124.71,124.65,57.48831614]
[1741873838075,57.48831614,124.72,124.66,57.48831614]
[1741873838271,57.48831614,124.68,124.64,0.03]
[1741873838496,57.48831614,124.67,124.64,0.03]
[1741873839655,57.48831614,124.68,124.64,0.03]
[1741873839847,82.6,124.71,124.64,0.03]
[1741873840045,57.48831614,124.7,124.64,57.51831614]
[1741873840249,82.6,124.71,124.66,57.48831614]
[1741873840553,57.48831614,124.72,124.65,9.12]
[1741873840752,57.48831614,124.71,124.65,66.60831614]
[1741873840977,57.48831614,124.72,124.66,57.48831614]
[1741873841162,59.15121614,124.73,124.67,57.48831614]
[1741873841469,57.48831614,124.71,124.66,8.0218]
[1741873841703,57.48831614,124.71,124.65,65.51061614]
[1741873842272,57.48831614,124.72,124.67,57.48831614]
[1741873842466,57.48831614,124.72,124.66,57.48831614]
[1741873842848,57.48831614,124.71,124.65,65.51061614]
[1741873843053,59.15121614,124.73,124.67,57.48831614]
[1741873843258,59.15121614,124.73,124.66,57.48831614]
[1741873843259,57.48831614,124.72,124.66,57.48831614]
[1741873843457,57.48831614,124.72,124.67,57.48831614]
[1741873843665,57.48831614,124.72,124.66,65.51011614]
[1741873843869,59.15121614,124.73,124.67,57.48831614]
[1741873844067,57.48831614,124.72,124.66,65.51011614]
[1741873844262,9.6803,124.73,124.66,65.51011614]
[1741873844263,57.48831614,124.71,124.66,65.51011614]
[1741873844463,57.48831614,124.7,124.64,57.51831614]
[1741873844754,57.48831614,124.7,124.64,65.54121614]
[1741873844961,57.48831614,124.69,124.64,65.54121614]
[1741873845173,57.48831614,124.69,124.64,8.0529]
[1741873845382,57.48831614,124.68,124.64,0.03]
[1741873845674,63.78631614,124.66,124.65,0.03]
[1741873846453,6.298,124.66,124.65,0.03]
[1741873846861,57.48831614,124.68,124.65,0.03]
[1741873847487,65.50881614,124.68,124.65,0.03]
[1741873847859,64.06751614,124.69,124.65,0.03]
[1741873848252,57.48831614,124.67,124.65,0.03]
[1741873848571,14.5991,124.69,124.65,0.03]
[1741873848572,57.48831614,124.66,124.65,0.03]
[1741873848958,66.60831614,124.66,124.65,0.03]
[1741873849659,74.63011614,124.66,124.65,0.03]
[1741873849859,157.23011614,124.66,124.65,0.03]
[1741873850479,82.6,124.65,124.55,65.51721614]
[1741873850772,57.48831614,124.62,124.57,57.48831614]
[1741873850984,57.48831614,124.62,124.55,8.0289]
[1741873850985,82.6,124.64,124.59,57.48831614]
[1741873851153,57.48831614,124.63,124.57,57.48831614]
[1741873851354,57.48831614,124.62,124.57,56.28831614]
[1741873851556,65.51281614,124.62,124.55,8.0289]
[1741873851757,57.48831614,124.61,124.55,8.0289]
[1741873852057,57.48831614,124.59,124.54,57.48831614]
[1741873852257,15.1545,124.61,124.56,57.48831614]
[1741873852560,63.52281614,124.61,124.56,57.48831614]
[1741873852760,65.51281614,124.62,124.56,57.48831614]
[1741873853156,57.48831614,124.61,124.55,57.48831614]
[1741873853375,65.51281614,124.62,124.56,57.48831614]
[1741873853581,146.16551614,124.64,124.58,57.48831614]
[1741873853768,146.16551614,124.64,124.58,65.51491614]
[1741873854077,57.48831614,124.63,124.57,65.51561614]
[1741873854381,57.48831614,124.63,124.57,57.48831614]
[1741873855175,57.48831614,124.61,124.56,57.48831614]
[1741873855378,154.18861614,124.64,124.58,57.48831614]
[1741873855554,146.16551614,124.64,124.59,8.0263]
[1741873855754,88.6772,124.64,124.59,65.51461614]
[1741873855966,146.16551614,124.64,124.59,8.0263]
[1741873856167,146.16551614,124.64,124.58,57.48831614]
[1741873856378,154.18901614,124.64,124.58,65.51511614]
[1741873856575,146.16551614,124.64,124.58,8.0268]
[1741873856883,88.6772,124.64,124.59,57.48831614]
[1741873857087,67.15901614,124.66,124.6,57.48831614]
[1741873857681,6.3759,124.67,124.61,65.51331614]
[1741873857862,6.3759,124.67,124.63,57.48831614]
[1741873858280,57.48831614,124.69,124.63,57.48831614]
[1741873858464,1.6328,124.7,124.64,57.48831614]
[1741873858774,57.48831614,124.69,124.63,57.48831614]
[1741873859087,67.14031614,124.7,124.64,57.48831614]
[1741873859382,57.48831614,124.69,124.61,28.0875]
[1741873859563,65.57071614,124.7,124.64,57.48831614]
[1741873859763,57.48831614,124.67,124.59,0.03]
[1741873859973,57.48831614,124.67,124.61,57.48831614]
[1741873860282,57.48831614,124.68,124.62,57.48831614]
[1741873860883,82.663,124.7,124.65,57.48831614]
[1741873861185,0.063,124.7,124.65,57.48831614]
[1741873861373,57.55131614,124.7,124.64,57.48831614]
[1741873861561,0.063,124.7,124.64,57.48831614]
[1741873861763,0.063,124.7,124.64,9.14]
[1741873861986,0.063,124.7,124.68,57.48831614]
[1741873862569,0.063,124.7,124.69,57.48831614]
[1741873862970,63.79601614,124.79,124.69,57.63047771]
[1741873863288,57.48831614,124.78,124.69,9.28216157]
[1741873863493,63.79601614,124.79,124.74,57.48831614]
[1741873863673,1.6025,124.81,124.77,8.0147]
[1741873863873,57.48831614,124.82,124.76,57.48831614]
[1741873864079,63.58791614,124.83,124.77,57.48831614]
[1741873864993,57.48831614,124.82,124.76,65.50351614]
[1741873865167,71.59931614,124.83,124.77,57.48831614]
[1741873865366,0.063,124.83,124.79,57.48831614]
[1741873865779,0.063,124.83,124.76,28.0536]
[1741873865780,65.56231614,124.83,124.76,8.0152]
[1741873865988,65.56231614,124.83,124.74,378.60831614]
[1741873865989,57.48831614,124.82,124.77,57.48831614]
[1741873866185,57.48831614,124.82,124.76,57.48831614]
[1741873866387,57.48831614,124.8,124.75,57.48831614]
[1741873866584,57.48831614,124.81,124.75,57.48831614]
[1741873867303,0.063,124.83,124.78,57.48831614]
[1741873867465,0.063,124.83,124.79,57.48831614]
[1741873867671,0.063,124.83,124.81,57.48831614]
[1741873867877,0.063,124.83,124.82,57.48831614]
[1741873868293,0.063,124.83,124.8,57.48831614]
[1741873868476,0.063,124.83,124.81,57.48831614]
[1741873868668,0.063,124.83,124.82,57.48831614]
[1741873869393,0.063,124.83,124.82,65.49981614]
[1741873869898,0.063,124.83,124.8,8.0128]
[1741873870063,0.063,124.83,124.82,57.48831614]
[1741873870488,0.063,124.83,124.8,57.48831614]
[1741873871190,57.48831614,124.82,124.77,57.48831614]
[1741873871390,57.55131614,124.83,124.77,65.50251614]
[1741873871597,57.55131614,124.83,124.77,57.48831614]
[1741873871897,57.48831614,124.82,124.77,57.48831614]
[1741873872193,57.48831614,124.81,124.74,9.623]
[1741873872373,57.48831614,124.8,124.74,57.48831614]
[1741873872576,57.48831614,124.79,124.73,57.48831614]
[1741873872779,57.48831614,124.79,124.74,57.48831614]
[1741873873090,57.48831614,124.79,124.73,57.48831614]
[1741873873293,65.50181614,124.79,124.74,57.48831614]
[1741873873590,65.50181614,124.79,124.71,57.48831614]
[1741873873591,57.48831614,124.76,124.71,57.48831614]
[1741873873770,57.48831614,124.73,124.66,1.6184]
[1741873873966,57.48831614,124.72,124.67,57.48831614]
[1741873874274,6.2927,124.75,124.69,57.48831614]
[1741873874474,6.2927,124.75,124.72,57.48831614]
[1741873874792,57.48831614,124.78,124.72,57.48831614]
[1741873874975,57.48831614,124.77,124.71,57.48831614]
[1741873875182,57.48831614,124.78,124.72,57.48831614]
[1741873875488,57.48831614,124.78,124.73,57.48831614]
[1741873875698,57.48831614,124.77,124.72,57.48831614]
[1741873875995,57.48831614,124.78,124.72,57.48831614]
[1741873876190,57.48831614,124.77,124.72,57.48831614]
[1741873876371,57.48831614,124.76,124.69,8.0198]
[1741873876571,57.48831614,124.76,124.7,57.48831614]
[1741873876784,57.48831614,124.75,124.69,65.50811614]
[1741873877292,57.48831614,124.76,124.7,57.48831614]
[1741873877478,57.48831614,124.75,124.69,57.48831614]
[1741873877799,57.48831614,124.74,124.68,386.62871614]
[1741873877986,57.48831614,124.74,124.69,57.48831614]
[1741873878191,57.48831614,124.75,124.69,57.48831614]
[1741873878393,8.0148,124.77,124.69,57.48831614]
[1741873878587,57.48831614,124.75,124.69,57.48831614]
[1741873878896,57.48831614,124.74,124.68,386.62871614]
[1741873879210,57.48831614,124.74,124.69,57.48831614]
[1741873879594,65.50501614,124.74,124.69,57.48831614]
[1741873879791,8.0167,124.74,124.69,57.48831614]
[1741873880092,57.48831614,124.75,124.69,57.48831614]
[1741873880511,6.1097,124.79,124.73,57.48831614]
[1741873880678,63.59801614,124.79,124.73,57.48831614]
[1741873880875,57.48831614,124.78,124.72,57.48831614]
[1741873881395,71.61161614,124.79,124.73,57.48831614]
[1741873881605,57.48831614,124.78,124.72,8.0177]
[1741873881808,57.48831614,124.77,124.72,8.0177]
[1741873882005,8.0136,124.79,124.74,57.48831614]
[1741873882302,65.50131614,124.8,124.75,57.48831614]
[1741873882478,65.50131614,124.8,124.74,65.50481614]
[1741873882673,148.10071614,124.81,124.75,57.48831614]
[1741873882880,0.063,124.78,124.76,57.48831614]
[1741873883176,0.063,124.78,124.77,57.48831614]
[1741873883502,0.063,124.78,124.75,57.48831614]
[1741873883797,0.063,124.78,124.77,312.0]
[1741873884006,0.063,124.78,124.76,57.48831614]
[1741873884189,0.063,124.78,124.75,57.48831614]
[1741873884501,0.063,124.78,124.75,65.50421614]
[1741873884683,0.063,124.78,124.75,57.48831614]
[1741873884887,0.063,124.78,124.75,65.50411614]
[1741873885608,0.063,124.78,124.76,57.48831614]
[1741873886381,0.063,124.78,124.76,38.33748915]
[1741873886728,0.063,124.78,124.76,46.35218915]
[1741873887021,0.063,124.78,124.76,312.0]
[1741873887798,0.063,124.78,124.76,350.33748915]
[1741873887998,0.063,124.78,124.76,312.0]
[1741873888304,0.063,124.78,124.77,38.33748915]
[1741873888774,0.063,124.78,124.77,46.35218915]
[1741873889177,0.063,124.78,124.77,8.0147]
[1741873889404,0.063,124.78,124.77,46.35218915]
[1741873890108,0.063,124.78,124.77,38.33748915]
[1741873890405,0.063,124.78,124.76,350.33748915]
[1741873890586,0.063,124.78,124.76,46.35258915]
[1741873890783,0.063,124.78,124.76,38.33748915]
[1741873891108,0.063,124.78,124.75,8.016]
[1741873891305,0.063,124.78,124.72,38.33748915]
[1741873891511,0.063,124.78,124.71,35.6953]
[1741873891679,0.063,124.78,124.74,38.33748915]
[1741873891880,0.063,124.78,124.73,38.33748915]
[1741873892701,0.063,124.78,124.75,38.33748915]
[1741873893010,0.063,124.78,124.72,26.80971043]
[1741873893317,0.063,124.78,124.72,35.78754886]
[1741873893601,38.40048915,124.78,124.74,312.0]
[1741873893807,0.063,124.78,124.73,38.33748915]
[1741873893996,38.40048915,124.78,124.72,38.33748915]
[1741873894249,38.33748915,124.75,124.69,0.03]
[1741873894389,38.33748915,124.74,124.69,0.03]
[1741873894894,20.0396,124.76,124.7,38.33748915]
[1741873895201,8.016,124.75,124.7,38.36748915]
[1741873895397,46.35348915,124.75,124.7,0.03]
[1741873895992,82.663,124.78,124.72,38.33748915]
[1741873896197,8.0147,124.77,124.73,38.33748915]
[1741873896406,0.063,124.78,124.74,38.33748915]
[1741873896616,0.063,124.78,124.75,38.33748915]
[1741873897616,0.063,124.78,124.76,38.33748915]
[1741873897806,0.063,124.78,124.77,38.33748915]
[1741873898282,0.063,124.78,124.77,46.35218915]
[1741873898679,23.6975,124.83,124.78,7.9159]
[1741873898680,0.063,124.83,124.78,7.9159]
[1741873898880,0.063,124.83,124.79,38.33748915]
[1741873899297,38.40048915,124.83,124.77,17.1347]
[1741873899496,46.41138915,124.83,124.77,47.45748915]
[1741873899704,38.33748915,124.81,124.74,7.9159]
[1741873900015,38.40048915,124.83,124.77,38.33748915]
[1741873900219,0.063,124.83,124.78,38.33748915]
[1741873901411,0.063,124.83,124.79,38.33748915]
[1741873901581,0.063,124.83,124.8,38.33748915]
[1741873901786,0.063,124.83,124.81,38.33748915]
[1741873902393,0.063,124.83,124.8,8.0126]
[1741873902613,0.063,124.83,124.8,38.33748915]
[1741873902786,0.063,124.83,124.81,38.33748915]
[1741873903115,0.063,124.83,124.8,38.33748915]
[1741873903415,0.063,124.83,124.79,8.0132]
[1741873903719,0.063,124.83,124.82,38.33748915]
[1741873904087,0.063,124.83,124.82,46.34898915]
[1741873904305,0.063,124.83,124.81,38.33748915]
[1741873904891,0.063,124.83,124.81,312.0]
[1741873905089,0.063,124.83,124.79,46.35078915]
[1741873905711,0.063,124.83,124.8,38.33748915]
[1741873906023,0.063,124.83,124.81,8.0121]
[1741873906190,0.063,124.83,124.81,46.34958915]
[1741873906586,0.063,124.83,124.77,38.33748915]
[1741873906810,38.40048915,124.83,124.76,18.79181043]
[1741873907017,38.40048915,124.83,124.77,38.33748915]
[1741873907217,0.063,124.83,124.78,38.33748915]
[1741873907694,38.40048915,124.83,124.77,46.35218915]
[1741873907889,0.063,124.83,124.78,38.33748915]
[1741873908095,38.40048915,124.83,124.77,320.0147]
[1741873908297,0.063,124.83,124.78,38.33748915]
[1741873908998,38.40048915,124.83,124.77,350.33748915]
[1741873909197,0.063,124.83,124.78,38.33748915]
[1741873909699,0.063,124.83,124.77,312.0]
[1741873909700,38.40048915,124.83,124.77,358.35208915]
[1741873910215,0.063,124.83,124.78,38.33748915]
[1741873910914,38.40048915,124.83,124.77,350.33748915]
[1741873911312,0.063,124.83,124.78,38.33748915]
[1741873911617,0.063,124.83,124.79,38.33748915]
[1741873911814,0.063,124.83,124.81,38.33748915]
[1741873912401,0.063,124.83,124.82,38.33748915]
[1741873912793,0.063,124.83,124.79,27.91181043]
[1741873913419,0.063,124.83,124.82,38.33748915]
[1741873913733,0.063,124.83,124.82,46.34898915]
[1741873914629,0.063,124.83,124.81,38.33748915]
[1741873915200,0.063,124.83,124.82,38.33748915]
[1741873915400,0.063,124.83,124.79,8.0132]
[1741873915629,0.063,124.83,124.79,38.33748915]
[1741873915931,0.063,124.83,124.79,46.35078915]
[1741873916228,0.063,124.83,124.81,38.33748915]
[1741873916428,0.063,124.83,124.8,38.33748915]
[1741873916634,0.063,124.83,124.81,38.33748915]
[1741873916806,0.063,124.83,124.82,38.33748915]
[1741873917506,0.063,124.83,124.81,38.33748915]
[1741873917919,0.063,124.83,124.78,18.64964886]
[1741873918118,0.063,124.83,124.79,38.33748915]
[1741873918336,0.063,124.83,124.8,38.33748915]
[1741873919008,0.063,124.83,124.78,38.33748915]
[1741873920019,38.40048915,124.83,124.78,0.03]
[1741873920325,38.33748915,124.81,124.78,0.03]
[1741873920531,38.33748915,124.82,124.78,0.03]
[1741873920735,44.43948915,124.83,124.78,0.03]
[1741873920906,6.102,124.83,124.79,46.35088915]
[1741873921441,0.063,124.83,124.79,46.35088915]
[1741873921641,0.063,124.83,124.82,57.12929958]
[1741873921814,0.063,124.83,124.82,57.27146115]
[1741873922139,0.063,124.83,124.82,369.27146115]
[1741873922435,0.063,124.87,124.82,369.27146115]
[1741873922638,0.063,124.87,124.86,38.33748915]
[1741873922933,0.063,124.87,124.85,38.33748915]
[1741873923138,0.063,124.87,124.84,8.0102]
[1741873923325,0.063,124.87,124.85,38.33748915]
[1741873923708,38.40048915,124.87,124.82,320.0113]
[1741873923913,38.33748915,124.84,124.78,0.03]
[1741873924113,18.85481043,124.87,124.78,0.03]
[1741873924411,38.33748915,124.8,124.78,0.03]
[1741873924932,38.33748915,124.79,124.78,0.03]
[1741873925937,44.98598915,124.79,124.78,0.03]
[1741873926232,6.6485,124.79,124.78,0.03]
[1741873926641,44.98598915,124.79,124.78,0.03]
[1741873927121,52.99938915,124.79,124.78,0.03]
[1741873928241,82.6,124.81,124.78,0.03]
[1741873928436,6.0113,124.82,124.78,0.03]
[1741873928629,6.0113,124.82,124.79,38.33748915]
[1741873928942,82.6,124.84,124.8,38.33748915]
[1741873929345,82.6,124.84,124.79,8.0134]
[1741873929513,0.063,124.87,124.83,38.33748915]
[1741873929718,0.063,124.87,124.85,38.33748915]
[1741873930126,0.063,124.87,124.86,38.33748915]
[1741873930328,0.063,124.87,124.83,9.1]
[1741873930523,0.063,124.87,124.85,38.33748915]
[1741873930719,0.063,124.87,124.83,9.1]
[1741873930938,0.063,124.87,124.83,38.33748915]
[1741873931145,0.063,124.87,124.84,38.33748915]
[1741873931440,0.063,124.87,124.83,46.34818915]
[1741873931645,0.063,124.87,124.83,38.33748915]
[1741873932129,0.063,124.87,124.81,17.112]
[1741873932523,0.063,124.87,124.82,38.33748915]
[1741873932719,0.063,124.87,124.83,38.33748915]
[1741873932926,0.063,124.87,124.85,46.34708915]
[1741873933453,0.063,124.87,124.86,38.33748915]
[1741873935049,0.063,124.87,124.86,46.34638915]
[1741873935424,0.063,124.87,124.86,38.33748915]
[1741873935624,0.063,124.89,124.88,38.79181043]
[1741873935936,0.063,124.91,124.89,18.79181043]
[1741873936142,0.063,124.91,124.9,57.12929958]
[1741873936645,0.063,124.96,124.91,18.79181043]
[1741873936847,0.063,124.96,124.95,38.33748915]
[1741873937031,0.063,124.96,124.95,46.34068915]
[1741873937237,0.063,124.96,124.95,38.33748915]
[1741873937655,0.063,124.96,124.95,84.6781783]
[1741873937853,0.063,125.0,124.96,18.79181043]
[1741873938023,0.063,125.0,124.99,38.33748915]
[1741873938220,0.063,125.0,124.99,57.29401539]
[1741873938752,0.063,125.0,124.97,57.29401539]
[1741873938927,0.063,125.0,124.96,9.1]
[1741873938928,0.063,125.0,124.98,57.29401539]
[1741873939135,0.063,125.0,124.99,57.29401539]
[1741873939655,0.063,125.0,124.99,76.22798739]
[1741873939859,0.063,125.01,125.0,18.933972]
[1741873940029,0.063,125.03,125.0,18.933972]
[1741873940030,0.063,125.03,125.02,18.79181043]
[1741873940226,0.063,125.03,125.02,27.89181043]
[1741873940421,0.063,125.03,125.02,142.47984121]
[1741873940643,0.063,125.03,124.99,0.14216157]
[1741873940851,0.063,125.03,125.02,57.29401539]
[1741873941649,0.063,125.03,125.02,388.08582582]
[1741873941859,0.063,125.03,125.02,57.29401539]
[1741873942156,0.063,125.03,125.01,66.39401539]
[1741873942366,0.063,125.03,125.02,57.29401539]
[1741873942947,0.063,125.03,124.98,57.29401539]
[1741873943157,0.063,125.03,125.02,57.29401539]
[1741873943858,0.063,125.03,125.0,57.29401539]
[1741873944350,0.063,125.03,124.95,269.15401539]
[1741873944559,0.063,125.03,124.94,9.24216157]
[1741873944560,57.35701539,125.03,124.97,57.29401539]
[1741873944746,57.35701539,125.03,124.94,9.24216157]
[1741873944951,57.29401539,125.01,124.95,57.29401539]
[1741873945151,57.29401539,125.0,124.95,57.29401539]
[1741873945459,19.9989,125.01,124.96,57.29401539]
[1741873945665,77.29291539,125.01,124.96,57.29401539]
[1741873945958,57.29401539,125.0,124.91,27.74964886]
[1741873946166,57.29401539,125.0,124.94,57.29401539]
[1741873946334,57.29401539,125.0,124.91,27.74964886]
[1741873946335,57.29401539,124.99,124.93,57.29401539]
[1741873946538,57.29401539,124.98,124.93,57.29401539]
[1741873946786,57.29401539,124.99,124.94,57.29401539]
[1741873947133,8.0012,124.98,124.94,57.29401539]
[1741873947439,65.29521539,124.98,124.92,57.29401539]
[1741873947640,57.29401539,124.97,124.92,57.29401539]
[1741873947855,85.29841539,124.98,124.92,57.29401539]
[1741873948243,8.0012,124.98,124.93,57.29401539]
[1741873948442,8.0006,125.0,124.96,57.29401539]
[1741873948860,8.0006,125.0,124.9,18.933972]
[1741873949061,57.29401539,124.98,124.9,18.933972]
[1741873949252,8.0019,124.97,124.92,57.29401539]
[1741873949734,65.29591539,124.97,124.91,57.29401539]
[1741873950146,57.29401539,124.95,124.88,211.72]
[1741873950359,57.29401539,124.95,124.89,57.29401539]
[1741873950757,57.29401539,124.94,124.86,0.063]
[1741873951065,57.29401539,124.94,124.88,57.29401539]
[1741873951248,8.0044,124.93,124.89,57.29401539]
[1741873951453,8.0044,124.93,124.88,57.29401539]
[1741873951970,8.0044,124.93,124.89,57.29401539]
[1741873952153,8.0025,124.96,124.91,57.29401539]
[1741873952361,8.0025,124.96,124.92,57.29401539]
[1741873952864,99.7018,124.98,124.93,57.29401539]
[1741873953067,57.29401539,124.97,124.91,57.29401539]
[1741873953280,57.29401539,124.96,124.9,57.29401539]
[1741873953568,65.29721539,124.95,124.89,57.29401539]
[1741873953947,57.29401539,124.94,124.88,57.29401539]
[1741873954151,57.29401539,124.93,124.88,57.29401539]
[1741873954354,57.29401539,124.9,124.86,0.063]
[1741873954572,57.29401539,124.92,124.86,57.35701539]
[1741873954876,66.39401539,124.93,124.88,57.29401539]
[1741873955047,66.39401539,124.93,124.87,57.29401539]
[1741873955347,66.39401539,124.93,124.88,57.29401539]
[1741873956048,57.29401539,124.9,124.86,0.063]
[1741873956377,37.1159,124.93,124.86,0.063]
[1741873956378,57.29401539,124.89,124.86,0.063]
[1741873956571,57.29401539,124.87,124.86,0.063]
[1741873956743,9.1,124.88,124.86,0.063]
[1741873957145,139.89401539,124.92,124.86,57.35701539]
[1741873957372,90.6051,124.92,124.88,57.29401539]
[1741873957843,90.6051,124.92,124.86,0.063]
[1741873957844,147.89911539,124.92,124.86,0.063]
[1741873958042,90.6051,124.92,124.87,57.29401539]
[1741873958273,82.6,124.92,124.88,57.29401539]
[1741873958765,90.6051,124.92,124.87,57.29401539]
[1741873958970,82.6,124.92,124.87,57.29401539]
[1741873959170,82.6,124.92,124.88,57.29401539]
[1741873959355,71.64981539,124.94,124.88,57.29401539]
[1741873959554,57.29401539,124.93,124.88,57.29401539]
[1741873959769,57.29401539,124.93,124.86,312.063]
[1741873960071,57.29401539,124.93,124.87,57.29401539]
[1741873960266,38.26809084,124.93,124.87,38.26809084]
[1741873960872,6.3519,124.94,124.89,38.26809084]
[1741873961073,14.3558,124.94,124.89,38.26809084]
[1741873961472,52.62389084,124.94,124.88,38.26809084]
[1741873962477,14.3558,124.94,124.88,38.26809084]
[1741873962671,38.26809084,124.93,124.88,38.26809084]
[1741873962978,38.26809084,124.93,124.87,38.26809084]
[1741873963353,38.26809084,124.92,124.86,38.33109084]
[1741873963680,52.62389084,124.94,124.88,38.26809084]
[1741873964058,6.3519,124.94,124.9,38.26809084]
[1741873964260,1.5395,124.97,124.92,38.26809084]
[1741873964465,6.1439,124.98,124.94,38.26809084]
[1741873964867,90.6001,125.0,124.95,38.26809084]
[1741873965177,38.26809084,124.98,124.93,38.26809084]
[1741873965358,8.0025,124.96,124.91,38.26809084]
[1741873965851,8.0025,124.96,124.9,38.26809084]
[1741873965852,46.27059084,124.96,124.9,38.26809084]
[1741873966052,46.27059084,124.96,124.91,38.26809084]
[1741873966277,38.26809084,124.95,124.89,46.27489084]
[1741873966852,38.26809084,124.94,124.88,47.36809084]
[1741873967063,6.5274,124.94,124.87,8.0081]
[1741873967350,38.26809084,124.91,124.86,0.063]
[1741873967546,6.5274,124.94,124.87,38.26809084]
[1741873967751,82.6,125.0,124.89,50.0]
[1741873967971,6.429,125.0,124.91,18.933972]
[1741873968382,6.429,125.0,124.95,38.26809084]
[1741873968575,52.69729084,125.0,124.94,38.26809084]
[1741873969252,38.26809084,124.99,124.94,38.26809084]
[1741873969450,38.26809084,124.97,124.9,8.29052314]
[1741873969679,38.26809084,124.97,124.9,8.0062]
[1741873969872,38.26809084,124.97,124.91,38.26809084]
[1741873970178,38.26809084,124.96,124.91,38.26809084]
[1741873970370,57.37114917,124.97,124.91,57.37114917]
[1741873970578,20.0,124.95,124.89,0.063]
[1741873970759,15.399,124.94,124.89,0.063]
[1741873970960,1.5257,124.93,124.89,0.063]
[1741873971272,6.299,124.94,124.89,57.43414917]
[1741873971457,65.37554917,124.93,124.89,0.063]
[1741873971657,8.0044,124.93,124.89,0.063]
[1741873972164,8.0044,124.93,124.89,57.43414917]
[1741873972671,8.0044,124.93,124.89,0.063]
[1741873972970,63.67014917,124.94,124.9,57.37114917]
[1741873972971,6.299,124.94,124.9,57.37114917]
[1741873973147,8.0026,124.96,124.91,57.37114917]
[1741873973351,57.37114917,124.94,124.89,0.063]
[1741873973573,57.37114917,124.95,124.89,57.43414917]
[1741873973881,65.37374917,124.96,124.9,57.37114917]
[1741873974174,57.37114917,124.95,124.9,57.37114917]
[1741873974373,57.37114917,124.95,124.89,57.43414917]
[1741873974551,57.37114917,124.94,124.89,0.063]
[1741873974757,57.37114917,124.93,124.89,0.063]
[1741873974964,57.37114917,124.95,124.89,57.43414917]
[1741873975475,8.0038,124.94,124.89,57.43414917]
[1741873975665,8.0033,124.95,124.9,57.37114917]
[1741873976258,65.37444917,124.95,124.89,8.07]
[1741873976475,57.37114917,124.94,124.89,0.063]
[1741873976883,85.38244917,124.95,124.89,0.063]
[1741873977061,57.37114917,124.92,124.89,0.063]
[1741873977583,57.37114917,124.94,124.89,57.43414917]
[1741873978159,8.0025,124.96,124.89,0.063]
[1741873978358,8.0025,124.96,124.89,57.43414917]
[1741873978580,57.37114917,124.94,124.89,0.063]
[1741873979280,57.37114917,124.95,124.89,57.43414917]
[1741873979681,57.37114917,124.93,124.89,0.063]
[1741873979979,65.37494917,124.94,124.89,0.063]
[1741873980406,8.0038,124.94,124.89,65.44094917]
[1741873980761,8.0038,124.94,124.89,8.0698]
[1741873980977,57.37114917,124.95,124.89,57.43414917]
[1741873981192,57.37114917,124.94,124.89,0.063]
[1741873981762,8.0044,124.93,124.89,0.063]
[1741873982066,57.37114917,124.92,124.89,0.063]
[1741873982274,8.0044,124.93,124.89,0.063]
[1741873982275,57.37114917,124.91,124.89,0.063]
[1741873982698,57.37114917,124.92,124.89,0.063]
[1741873983190,6.0381,124.91,124.89,0.063]
[1741873983776,63.40924917,124.91,124.89,0.063]
[1741873984092,65.37754917,124.9,124.89,0.0001]
[1741873984270,65.37754917,124.9,124.86,0.0001]
[1741873984271,20.0,124.87,124.86,0.0001]
[1741873984479,82.6,124.89,124.86,0.0001]
[1741873984679,57.37114917,124.88,124.86,0.0001]
[1741873984863,57.37114917,124.87,124.86,0.0001]
[1741873986279,65.37944917,124.87,124.86,0.0001]
[1741873986485,57.37114917,124.87,124.86,0.0001]
[1741873986689,65.37944917,124.87,124.86,0.0001]
[1741873986869,20.0,124.83,124.78,0.03]
[1741873987063,57.37114917,124.81,124.78,0.03]
[1741873987289,9.1,124.85,124.78,0.03]
[1741873987465,9.1,124.85,124.79,57.37114917]
[1741873987786,57.37114917,124.81,124.78,0.03]
[1741873987981,8.0102,124.84,124.78,0.03]
[1741873988391,57.37114917,124.82,124.78,0.03]
[1741873988706,57.37114917,124.81,124.78,0.03]